[Event "Titled Tuesday Blitz February 22 Late 2022"]
[White "Muradli, Mahammad"]
[Black "Aldokhin, Ivan"]
[WhiteFideId "13409301"]
[BlackFideId "24115720"]
[WhiteElo "2645"]
[BlackElo "2231"]
[Result "0-1"]
[Round "01"]
[TimeControl "180+1"]
[Date "2022.02.22"]
[WhiteClock "0:00:02"]
[BlackClock "0:00:03"]

1. Nf3 {[%clk 0:03:00]}  Nf6 {[%clk 0:02:59]} 2. d4 {[%clk 0:02:59]}  g6 {[%clk 0:03:00]} 3. c4 {[%clk 0:02:59]}  Bg7 {[%clk 0:03:00]} 4. Nc3 {[%clk 0:03:00]}  d6 {[%clk 0:03:01]} 5. Bg5 {[%clk 0:02:59]}  O-O {[%clk 0:03:02]} 6. e3 {[%clk 0:02:59]}  h6 {[%clk 0:03:02]} 7. Bh4 {[%clk 0:02:59]}  Nc6 {[%clk 0:03:03]} 8. Bd3 {[%clk 0:02:57]}  Bg4 {[%clk 0:02:55]} 9. h3 {[%clk 0:02:55]}  Bd7 {[%clk 0:02:46]} 10. a3 {[%clk 0:02:48]}  Qc8 {[%clk 0:02:01]} 11. Qc2 {[%clk 0:02:44]}  e5 {[%clk 0:01:46]} 12. O-O-O {[%clk 0:02:30]}  exd4 {[%clk 0:01:41]} 13. exd4 {[%clk 0:02:31]}  g5 {[%clk 0:01:38]} 14. Bg3 {[%clk 0:02:14]}  Nh5 {[%clk 0:01:38]} 15. Nd5 {[%clk 0:02:12]}  Nxg3 {[%clk 0:01:34]} 16. fxg3 {[%clk 0:02:12]}  Be6 {[%clk 0:01:29]} 17. Rhf1 {[%clk 0:02:11]}  Bxd5 {[%clk 0:01:09]} 18. cxd5 {[%clk 0:02:09]}  Ne7 {[%clk 0:01:10]} 19. h4 {[%clk 0:02:04]}  Nxd5 {[%clk 0:00:48]} 20. Bh7+ {[%clk 0:01:45]}  Kh8 {[%clk 0:00:47]} 21. Bf5 {[%clk 0:01:45]}  Ne3 {[%clk 0:00:36]} 22. Bxc8 {[%clk 0:01:41]}  Nxc2 {[%clk 0:00:36]} 23. Bxb7 {[%clk 0:01:42]}  Ne3 {[%clk 0:00:30]} 24. Bxa8 {[%clk 0:01:42]}  Rxa8 {[%clk 0:00:28]} 25. hxg5 {[%clk 0:01:42]}  Nxf1 {[%clk 0:00:21]} 26. Rxf1 {[%clk 0:01:40]}  hxg5 {[%clk 0:00:20]} 27. Nxg5 {[%clk 0:01:41]}  Bh6 {[%clk 0:00:19]} 28. Rxf7 {[%clk 0:01:22]}  Bxg5+ {[%clk 0:00:18]} 29. Kc2 {[%clk 0:01:23]}  Rc8 {[%clk 0:00:16]} 30. Kd3 {[%clk 0:01:21]}  Kg8 {[%clk 0:00:16]} 31. Rd7 {[%clk 0:01:20]}  Kf8 {[%clk 0:00:13]} 32. Rh7 {[%clk 0:01:20]}  Bf6 {[%clk 0:00:13]} 33. Kc4 {[%clk 0:01:17]}  c5 {[%clk 0:00:06]} 34. d5 {[%clk 0:01:17]}  Bxb2 {[%clk 0:00:03]} 35. Rxa7 {[%clk 0:01:17]}  Rb8 {[%clk 0:00:02]} 36. Ra6 {[%clk 0:01:16]}  Be5 {[%clk 0:00:03]} 37. g4 {[%clk 0:01:15]}  Rb1 {[%clk 0:00:03]} 38. Ra7 {[%clk 0:01:08]}  Rc1+ {[%clk 0:00:03]} 39. Kb5 {[%clk 0:01:08]}  Rb1+ {[%clk 0:00:03]} 40. Kc4 {[%clk 0:01:05]}  Rg1 {[%clk 0:00:04]} 41. a4 {[%clk 0:01:05]}  Rxg2 {[%clk 0:00:04]} 42. a5 {[%clk 0:01:05]}  Rxg4+ {[%clk 0:00:04]} 43. Kb5 {[%clk 0:01:06]}  Rb4+ {[%clk 0:00:04]} 44. Kc6 {[%clk 0:01:06]}  c4 {[%clk 0:00:05]} 45. a6 {[%clk 0:00:56]}  c3 {[%clk 0:00:05]} 46. Rb7 {[%clk 0:00:56]}  Ra4 {[%clk 0:00:05]} 47. Kb5 {[%clk 0:00:54]}  Ra2 {[%clk 0:00:02]} 48. Rc7 {[%clk 0:00:44]}  c2 {[%clk 0:00:02]} 49. a7 {[%clk 0:00:32]}  Bd4 {[%clk 0:00:03]} 50. Rxc2 {[%clk 0:00:26]}  Rxa7 {[%clk 0:00:03]} 51. Kc6 {[%clk 0:00:27]}  Bc5 {[%clk 0:00:03]} 52. Re2 {[%clk 0:00:27]}  Rf7 {[%clk 0:00:03]} 53. Re6 {[%clk 0:00:26]}  Re7 {[%clk 0:00:03]} 54. Rf6+ {[%clk 0:00:26]}  Ke8 {[%clk 0:00:03]} 55. Rh6 {[%clk 0:00:27]}  Rf7 {[%clk 0:00:04]} 56. Rh8+ {[%clk 0:00:27]}  Ke7 {[%clk 0:00:04]} 57. Rh6 {[%clk 0:00:27]}  Rf6 {[%clk 0:00:04]} 58. Rh7+ {[%clk 0:00:28]}  Rf7 {[%clk 0:00:05]} 59. Rh6 {[%clk 0:00:27]}  Rg7 {[%clk 0:00:05]} 60. Re6+ {[%clk 0:00:26]}  Kd8 {[%clk 0:00:06]} 61. Rh6 {[%clk 0:00:25]}  Rc7+ {[%clk 0:00:06]} 62. Kb5 {[%clk 0:00:26]}  Rb7+ {[%clk 0:00:07]} 63. Kc4 {[%clk 0:00:25]}  Rb4+ {[%clk 0:00:07]} 64. Kc3 {[%clk 0:00:26]}  Kc7 {[%clk 0:00:07]} 65. Rh8 {[%clk 0:00:26]}  Rd4 {[%clk 0:00:07]} 66. Rh5 {[%clk 0:00:26]}  Kb6 {[%clk 0:00:06]} 67. Rg5 {[%clk 0:00:26]}  Kb5 {[%clk 0:00:07]} 68. Rh5 {[%clk 0:00:26]}  Rc4+ {[%clk 0:00:07]} 69. Kb3 {[%clk 0:00:23]}  Rg4 {[%clk 0:00:08]} 70. Kc3 {[%clk 0:00:22]}  Rg3+ {[%clk 0:00:08]} 71. Kd2 {[%clk 0:00:23]}  Kc4 {[%clk 0:00:08]} 72. Ke2 {[%clk 0:00:23]}  Rd3 {[%clk 0:00:08]} 73. Rh4+ {[%clk 0:00:22]}  Rd4 {[%clk 0:00:08]} 74. Rh1 {[%clk 0:00:20]}  Kxd5 {[%clk 0:00:08]} 75. Rh5+ {[%clk 0:00:20]}  Kc4 {[%clk 0:00:08]} 76. Rh3 {[%clk 0:00:21]}  Re4+ {[%clk 0:00:08]} 77. Kd2 {[%clk 0:00:22]}  d5 {[%clk 0:00:09]} 78. Kc2 {[%clk 0:00:22]}  d4 {[%clk 0:00:09]} 79. Rg3 {[%clk 0:00:17]}  Re2+ {[%clk 0:00:09]} 80. Kd1 {[%clk 0:00:18]}  Rh2 {[%clk 0:00:07]} 81. Rg4 {[%clk 0:00:16]}  Bb4 {[%clk 0:00:07]} 82. Rg8 {[%clk 0:00:11]}  Kd3 {[%clk 0:00:04]} 83. Rg3+ {[%clk 0:00:10]}  Ke4 {[%clk 0:00:04]} 84. Rg8 {[%clk 0:00:11]}  Rh1+ {[%clk 0:00:03]} 85. Ke2 {[%clk 0:00:10]}  Rh2+ {[%clk 0:00:03]} 86. Kd1 {[%clk 0:00:10]}  Bd6 {[%clk 0:00:04]} 87. Rg6 {[%clk 0:00:08]}  Be5 {[%clk 0:00:03]} 88. Rg8 {[%clk 0:00:06]}  d3 {[%clk 0:00:04]} 89. Rg1 {[%clk 0:00:04]}  Bf4 {[%clk 0:00:04]} 90. Re1+ {[%clk 0:00:02]}  Kd4 {[%clk 0:00:04]} 91. Rf1 {[%clk 0:00:02]}  Be3 {[%clk 0:00:03]} 0-1


[Site "https://www.chess.com"]

[Event "Titled Tuesday Blitz February 22 Late 2022"]
[White "Murzin, Volodar"]
[Black "Buscar, Michael"]
[WhiteFideId "44155573"]
[BlackFideId "2603616"]
[WhiteElo "2585"]
[BlackElo "2010"]
[Result "0-1"]
[Round "01"]
[TimeControl "180+1"]
[Date "2022.02.23"]
[WhiteClock "0:00:01"]
[BlackClock "0:00:03"]

1. e4 {[%clk 0:03:00]}  c5 {[%clk 0:02:59]} 2. Nf3 {[%clk 0:03:00]}  Nc6 {[%clk 0:02:59]} 3. Bb5 {[%clk 0:03:00]}  Nf6 {[%clk 0:02:59]} 4. Bxc6 {[%clk 0:02:56]}  dxc6 {[%clk 0:02:57]} 5. d3 {[%clk 0:02:55]}  g6 {[%clk 0:02:57]} 6. O-O {[%clk 0:02:55]}  Bg7 {[%clk 0:02:57]} 7. Nbd2 {[%clk 0:02:53]}  O-O {[%clk 0:02:57]} 8. Re1 {[%clk 0:02:53]}  Ne8 {[%clk 0:02:58]} 9. a4 {[%clk 0:02:52]}  Nc7 {[%clk 0:02:55]} 10. a5 {[%clk 0:02:51]}  Ne6 {[%clk 0:02:45]} 11. Nc4 {[%clk 0:02:48]}  Nd4 {[%clk 0:02:40]} 12. Nfd2 {[%clk 0:02:31]}  Be6 {[%clk 0:02:24]} 13. c3 {[%clk 0:02:30]}  Bxc4 {[%clk 0:02:24]} 14. Nxc4 {[%clk 0:02:30]}  Ne6 {[%clk 0:02:22]} 15. Be3 {[%clk 0:02:30]}  Qc7 {[%clk 0:02:17]} 16. Qb3 {[%clk 0:02:21]}  Rfd8 {[%clk 0:02:12]} 17. Rad1 {[%clk 0:02:09]}  Rd7 {[%clk 0:02:08]} 18. Qa3 {[%clk 0:02:07]}  Rad8 {[%clk 0:01:57]} 19. Bxc5 {[%clk 0:02:06]}  Nxc5 {[%clk 0:01:39]} 20. Qxc5 {[%clk 0:02:04]}  Rxd3 {[%clk 0:01:40]} 21. Rxd3 {[%clk 0:02:02]}  Rxd3 {[%clk 0:01:40]} 22. Qxa7 {[%clk 0:02:03]}  Be5 {[%clk 0:01:18]} 23. g3 {[%clk 0:01:32]}  h5 {[%clk 0:00:52]} 24. Nxe5 {[%clk 0:00:46]}  Qxe5 {[%clk 0:00:50]} 25. Qxb7 {[%clk 0:00:47]}  h4 {[%clk 0:00:44]} 26. Qb6 {[%clk 0:00:37]}  h3 {[%clk 0:00:21]} 27. Kf1 {[%clk 0:00:13]}  Qh5 {[%clk 0:00:19]} 28. Qb8+ {[%clk 0:00:08]}  Kg7 {[%clk 0:00:15]} 29. a6 {[%clk 0:00:07]}  Rd2 {[%clk 0:00:05]} 30. Qf4 {[%clk 0:00:03]}  Rxb2 {[%clk 0:00:04]} 31. Ra1 {[%clk 0:00:01]}  Qb5+ {[%clk 0:00:03]} 0-1


[Site "https://www.chess.com"]

[Event "Titled Tuesday Blitz February 22 Late 2022"]
[White "Myers, Dominique"]
[Black "Ruperez Benito, Antonio"]
[WhiteFideId "2041715"]
[BlackFideId "22245049"]
[WhiteElo "1986"]
[BlackElo "2249"]
[Result "1-0"]
[Round "01"]
[TimeControl "180+1"]
[Date "2022.02.23"]
[WhiteClock "0:01:31"]
[BlackClock "0:01:04"]

1. e4 {[%clk 0:03:00]}  c5 {[%clk 0:02:46]} 2. Nf3 {[%clk 0:02:59]}  g6 {[%clk 0:02:38]} 3. d4 {[%clk 0:03:00]}  cxd4 {[%clk 0:02:38]} 4. Nxd4 {[%clk 0:03:00]}  Bg7 {[%clk 0:02:38]} 5. Nc3 {[%clk 0:03:00]}  Nc6 {[%clk 0:02:39]} 6. Be3 {[%clk 0:03:00]}  Nf6 {[%clk 0:02:32]} 7. Bc4 {[%clk 0:03:00]}  O-O {[%clk 0:02:32]} 8. Bb3 {[%clk 0:03:01]}  d6 {[%clk 0:02:33]} 9. f3 {[%clk 0:03:00]}  Bd7 {[%clk 0:02:33]} 10. Qd2 {[%clk 0:03:00]}  Rc8 {[%clk 0:02:33]} 11. O-O-O {[%clk 0:03:01]}  Nxd4 {[%clk 0:02:33]} 12. Bxd4 {[%clk 0:03:01]}  b5 {[%clk 0:02:33]} 13. g4 {[%clk 0:03:01]}  a5 {[%clk 0:02:31]} 14. a3 {[%clk 0:02:53]}  b4 {[%clk 0:02:29]} 15. axb4 {[%clk 0:02:53]}  axb4 {[%clk 0:02:30]} 16. Nd5 {[%clk 0:02:53]}  Nxd5 {[%clk 0:02:29]} 17. Bxg7 {[%clk 0:02:52]}  Kxg7 {[%clk 0:02:30]} 18. Qxd5 {[%clk 0:02:48]}  Kg8 {[%clk 0:02:26]} 19. Qd2 {[%clk 0:02:47]}  Qa5 {[%clk 0:02:25]} 20. Qd4 {[%clk 0:02:39]}  Ba4 {[%clk 0:02:20]} 21. Qe3 {[%clk 0:02:20]}  Rc5 {[%clk 0:02:15]} 22. Rd5 {[%clk 0:02:17]}  Rfc8 {[%clk 0:02:13]} 23. Rxc5 {[%clk 0:02:17]}  Rxc5 {[%clk 0:02:13]} 24. Rd1 {[%clk 0:02:17]}  h5 {[%clk 0:01:55]} 25. gxh5 {[%clk 0:02:13]}  Rxh5 {[%clk 0:01:54]} 26. Rd5 {[%clk 0:02:10]}  Rxd5 {[%clk 0:01:52]} 27. Bxd5 {[%clk 0:02:11]}  Qc7 {[%clk 0:01:46]} 28. b3 {[%clk 0:02:10]}  Be8 {[%clk 0:01:44]} 29. Qg5 {[%clk 0:02:02]}  Kg7 {[%clk 0:01:43]} 30. Qd2 {[%clk 0:02:00]}  Qc5 {[%clk 0:01:42]} 31. h4 {[%clk 0:01:55]}  e6 {[%clk 0:01:41]} 32. Bc4 {[%clk 0:01:55]}  Bc6 {[%clk 0:01:26]} 33. Qg5 {[%clk 0:01:52]}  Qd4 {[%clk 0:01:11]} 34. Kb1 {[%clk 0:01:45]}  d5 {[%clk 0:01:08]} 35. exd5 {[%clk 0:01:44]}  Bxd5 {[%clk 0:01:06]} 36. Bxd5 {[%clk 0:01:41]}  Qxd5 {[%clk 0:01:07]} 37. Qe3 {[%clk 0:01:37]}  Kf6 {[%clk 0:01:04]} 38. Kc1 {[%clk 0:01:34]}  Kf5 {[%clk 0:01:04]} 39. Qg5# {[%clk 0:01:31]} 1-0


[Site "https://www.chess.com"]

[Event "Titled Tuesday Blitz February 22 Late 2022"]
[White "Nesterov, Arseniy"]
[Black "Devaev, Alexander"]
[WhiteFideId "24198455"]
[BlackFideId "4169395"]
[WhiteElo "2489"]
[BlackElo "2185"]
[Result "1-0"]
[Round "01"]
[TimeControl "180+1"]
[Date "2022.02.23"]
[WhiteClock "0:00:56"]
[BlackClock "0:00:11"]

1. d4 {[%clk 0:03:00]}  Nf6 {[%clk 0:02:59]} 2. c4 {[%clk 0:03:01]}  e6 {[%clk 0:02:58]} 3. Nf3 {[%clk 0:03:01]}  Bb4+ {[%clk 0:02:56]} 4. Bd2 {[%clk 0:03:01]}  Qe7 {[%clk 0:02:55]} 5. g3 {[%clk 0:03:01]}  b6 {[%clk 0:02:56]} 6. Bg2 {[%clk 0:02:59]}  Bb7 {[%clk 0:02:56]} 7. O-O {[%clk 0:02:59]}  Bxd2 {[%clk 0:02:54]} 8. Nbxd2 {[%clk 0:02:58]}  O-O {[%clk 0:02:54]} 9. Qc2 {[%clk 0:02:58]}  d6 {[%clk 0:02:45]} 10. e4 {[%clk 0:02:56]}  e5 {[%clk 0:02:42]} 11. Rfe1 {[%clk 0:02:49]}  Nbd7 {[%clk 0:02:38]} 12. Rad1 {[%clk 0:02:48]}  g6 {[%clk 0:02:12]} 13. h3 {[%clk 0:02:38]}  c5 {[%clk 0:02:03]} 14. dxe5 {[%clk 0:02:29]}  dxe5 {[%clk 0:02:01]} 15. Nb1 {[%clk 0:02:29]}  Nb8 {[%clk 0:02:01]} 16. Nc3 {[%clk 0:02:28]}  Nc6 {[%clk 0:02:01]} 17. Nd5 {[%clk 0:02:28]}  Nxd5 {[%clk 0:02:00]} 18. exd5 {[%clk 0:02:29]}  Nd4 {[%clk 0:01:51]} 19. Nxd4 {[%clk 0:02:29]}  cxd4 {[%clk 0:01:51]} 20. d6 {[%clk 0:02:27]}  Qd7 {[%clk 0:01:49]} 21. Bxb7 {[%clk 0:02:27]}  Qxb7 {[%clk 0:01:49]} 22. Rxe5 {[%clk 0:02:27]}  Rad8 {[%clk 0:01:47]} 23. Rxd4 {[%clk 0:02:26]}  Rd7 {[%clk 0:01:39]} 24. b4 {[%clk 0:02:20]}  Rc8 {[%clk 0:01:31]} 25. c5 {[%clk 0:02:15]}  a5 {[%clk 0:01:27]} 26. a3 {[%clk 0:02:12]}  axb4 {[%clk 0:01:27]} 27. axb4 {[%clk 0:02:13]}  bxc5 {[%clk 0:01:27]} 28. bxc5 {[%clk 0:02:14]}  Qc6 {[%clk 0:01:20]} 29. Qe2 {[%clk 0:02:05]}  Kg7 {[%clk 0:01:15]} 30. Qe4 {[%clk 0:01:52]}  Qb5 {[%clk 0:01:01]} 31. Qd5 {[%clk 0:01:43]}  Ra7 {[%clk 0:00:57]} 32. Rd1 {[%clk 0:01:37]}  Rd7 {[%clk 0:00:50]} 33. h4 {[%clk 0:01:26]}  h5 {[%clk 0:00:48]} 34. Rc1 {[%clk 0:01:13]}  Rc6 {[%clk 0:00:41]} 35. Re8 {[%clk 0:01:06]}  Rdxd6 {[%clk 0:00:32]} 36. Qe5+ {[%clk 0:01:00]}  Rf6 {[%clk 0:00:32]} 37. Rb8 {[%clk 0:00:57]}  Re6 {[%clk 0:00:11]} 38. Qxf6+ {[%clk 0:00:56]} 1-0


[Site "https://www.chess.com"]

[Event "Titled Tuesday Blitz February 22 Late 2022"]
[White "Niemann, Hans Moke"]
[Black "Gimenez Aguirre, Alejo Ismael"]
[WhiteFideId "2093596"]
[BlackFideId "32041667"]
[WhiteElo "2636"]
[BlackElo "2031"]
[Result "1-0"]
[Round "01"]
[TimeControl "180+1"]
[Date "2022.02.22"]
[WhiteClock "0:00:18"]
[BlackClock "0:00:05"]

1. d4 {[%clk 0:03:00]}  Nf6 {[%clk 0:02:59]} 2. Nc3 {[%clk 0:02:58]}  e6 {[%clk 0:03:00]} 3. Bf4 {[%clk 0:02:58]}  c5 {[%clk 0:02:59]} 4. d5 {[%clk 0:02:55]}  d6 {[%clk 0:02:51]} 5. e4 {[%clk 0:02:46]}  e5 {[%clk 0:02:50]} 6. Be3 {[%clk 0:02:43]}  Be7 {[%clk 0:02:50]} 7. h3 {[%clk 0:02:42]}  a6 {[%clk 0:02:45]} 8. a4 {[%clk 0:02:39]}  O-O {[%clk 0:02:40]} 9. Nf3 {[%clk 0:02:36]}  Ne8 {[%clk 0:02:16]} 10. Bd3 {[%clk 0:02:26]}  g6 {[%clk 0:02:15]} 11. g4 {[%clk 0:02:25]}  Ng7 {[%clk 0:02:15]} 12. Rg1 {[%clk 0:02:20]}  Qc7 {[%clk 0:02:09]} 13. Nd2 {[%clk 0:02:13]}  Nd7 {[%clk 0:02:09]} 14. h4 {[%clk 0:02:04]}  c4 {[%clk 0:01:27]} 15. Nxc4 {[%clk 0:01:59]}  Bxh4 {[%clk 0:01:25]} 16. Qf3 {[%clk 0:01:32]}  f6 {[%clk 0:01:16]} 17. a5 {[%clk 0:01:25]}  g5 {[%clk 0:01:15]} 18. Nb6 {[%clk 0:01:20]}  Rb8 {[%clk 0:01:10]} 19. Nca4 {[%clk 0:01:18]}  Nxb6 {[%clk 0:01:04]} 20. Nxb6 {[%clk 0:01:19]}  Bd7 {[%clk 0:01:05]} 21. c4 {[%clk 0:01:18]}  Be8 {[%clk 0:01:02]} 22. Qe2 {[%clk 0:01:17]}  h5 {[%clk 0:01:02]} 23. O-O-O {[%clk 0:01:05]}  Bg6 {[%clk 0:00:56]} 24. f3 {[%clk 0:01:04]}  hxg4 {[%clk 0:00:56]} 25. fxg4 {[%clk 0:01:05]}  Ne8 {[%clk 0:00:38]} 26. Kb1 {[%clk 0:01:04]}  Kg7 {[%clk 0:00:38]} 27. Rc1 {[%clk 0:01:02]}  Rf7 {[%clk 0:00:36]} 28. Qf3 {[%clk 0:00:59]}  Qe7 {[%clk 0:00:30]} 29. Bc2 {[%clk 0:00:51]}  Nc7 {[%clk 0:00:28]} 30. Ba4 {[%clk 0:00:46]}  Na8 {[%clk 0:00:28]} 31. c5 {[%clk 0:00:42]}  Nxb6 {[%clk 0:00:27]} 32. cxb6 {[%clk 0:00:39]}  Qd8 {[%clk 0:00:22]} 33. Rc4 {[%clk 0:00:37]}  Rc8 {[%clk 0:00:22]} 34. Rgc1 {[%clk 0:00:37]}  Rxc4 {[%clk 0:00:22]} 35. Rxc4 {[%clk 0:00:38]}  Be1 {[%clk 0:00:17]} 36. b4 {[%clk 0:00:36]}  Qh8 {[%clk 0:00:16]} 37. Bc2 {[%clk 0:00:30]}  Qh2 {[%clk 0:00:12]} 38. Rc7 {[%clk 0:00:26]}  Bxb4 {[%clk 0:00:10]} 39. Rc4 {[%clk 0:00:20]}  Bxa5 {[%clk 0:00:10]} 40. Kb2 {[%clk 0:00:21]}  Be1 {[%clk 0:00:10]} 41. Qf1 {[%clk 0:00:19]}  Bd2 {[%clk 0:00:10]} 42. Qf2 {[%clk 0:00:19]}  Qxf2 {[%clk 0:00:09]} 43. Bxf2 {[%clk 0:00:20]}  Re7 {[%clk 0:00:07]} 44. Ba4 {[%clk 0:00:20]}  Kf7 {[%clk 0:00:08]} 45. Rc7 {[%clk 0:00:19]}  Bxe4 {[%clk 0:00:07]} 46. Bc5 {[%clk 0:00:16]}  Bxd5 {[%clk 0:00:04]} 47. Bxd6 {[%clk 0:00:16]}  Rxc7 {[%clk 0:00:04]} 48. bxc7 {[%clk 0:00:17]}  Be6 {[%clk 0:00:05]} 49. Bb3 {[%clk 0:00:18]} 1-0


[Site "https://www.chess.com"]

[Event "Titled Tuesday Blitz February 22 Late 2022"]
[White "Olcayoz, Alper"]
[Black "Weetik, Vjacheslav"]
[WhiteFideId "6300405"]
[BlackFideId "4153472"]
[WhiteElo "2255"]
[BlackElo "2469"]
[Result "0-1"]
[Round "01"]
[TimeControl "180+1"]
[Date "2022.02.23"]
[WhiteClock "0:02:44"]
[BlackClock "0:02:22"]

1. e4 {[%clk 0:03:00]}  c6 {[%clk 0:02:59]} 2. Nc3 {[%clk 0:02:54]}  d5 {[%clk 0:03:00]} 3. Qf3 {[%clk 0:02:53]}  dxe4 {[%clk 0:02:50]} 4. Nxe4 {[%clk 0:02:54]}  Nf6 {[%clk 0:02:50]} 5. Bc4 {[%clk 0:02:53]}  Nbd7 {[%clk 0:02:42]} 6. Qe2 {[%clk 0:02:47]}  Nxe4 {[%clk 0:02:37]} 7. Qxe4 {[%clk 0:02:48]}  Nf6 {[%clk 0:02:37]} 8. Qe2 {[%clk 0:02:49]}  Bg4 {[%clk 0:02:30]} 9. Nf3 {[%clk 0:02:48]}  e6 {[%clk 0:02:30]} 10. h3 {[%clk 0:02:48]}  Bh5 {[%clk 0:02:30]} 11. g4 {[%clk 0:02:48]}  Bg6 {[%clk 0:02:30]} 12. d3 {[%clk 0:02:47]}  Bd6 {[%clk 0:02:22]} 13. Ne5 {[%clk 0:02:44]}  Qa5+ {[%clk 0:02:22]} 0-1


[Site "https://www.chess.com"]

[Event "Titled Tuesday Blitz February 22 Late 2022"]
[White "Pavlidou, Ekaterini"]
[Black "Gledura, Benjamin"]
[WhiteFideId "4213262"]
[BlackFideId "712779"]
[WhiteElo "2127"]
[BlackElo "2326"]
[Result "0-1"]
[Round "01"]
[TimeControl "180+1"]
[Date "2022.02.23"]
[WhiteClock "0:01:24"]
[BlackClock "0:02:01"]

1. d4 {[%clk 0:02:58]}  d5 {[%clk 0:02:55]} 2. c4 {[%clk 0:02:57]}  dxc4 {[%clk 0:02:55]} 3. e3 {[%clk 0:02:56]}  Nf6 {[%clk 0:02:53]} 4. Bxc4 {[%clk 0:02:55]}  e6 {[%clk 0:02:54]} 5. Nf3 {[%clk 0:02:54]}  c5 {[%clk 0:02:53]} 6. O-O {[%clk 0:02:54]}  a6 {[%clk 0:02:53]} 7. a4 {[%clk 0:02:54]}  cxd4 {[%clk 0:02:48]} 8. exd4 {[%clk 0:02:53]}  Be7 {[%clk 0:02:46]} 9. Nc3 {[%clk 0:02:53]}  Nc6 {[%clk 0:02:37]} 10. Bg5 {[%clk 0:02:46]}  O-O {[%clk 0:02:35]} 11. Re1 {[%clk 0:02:34]}  h6 {[%clk 0:02:33]} 12. Bh4 {[%clk 0:02:33]}  Bd7 {[%clk 0:02:26]} 13. Qe2 {[%clk 0:02:29]}  Re8 {[%clk 0:02:24]} 14. Rad1 {[%clk 0:02:27]}  Nd5 {[%clk 0:02:23]} 15. Bg3 {[%clk 0:02:26]}  Ncb4 {[%clk 0:02:13]} 16. Ne4 {[%clk 0:02:20]}  Bxa4 {[%clk 0:02:09]} 17. b3 {[%clk 0:02:19]}  Bc6 {[%clk 0:02:09]} 18. Nc5 {[%clk 0:02:17]}  Nc3 {[%clk 0:02:06]} 19. Qd2 {[%clk 0:02:04]}  Nxd1 {[%clk 0:02:05]} 20. Qxb4 {[%clk 0:02:03]}  Bxf3 {[%clk 0:02:04]} 21. gxf3 {[%clk 0:01:52]}  Qxd4 {[%clk 0:02:03]} 22. Nxe6 {[%clk 0:01:24]}  Bxb4 {[%clk 0:02:01]} 0-1


[Site "https://www.chess.com"]

[Event "Titled Tuesday Blitz February 22 Late 2022"]
[White "Petrovic, Aleksa"]
[Black "Savchenko, Boris"]
[WhiteFideId "967629"]
[BlackFideId "4147332"]
[WhiteElo "2139"]
[BlackElo "2512"]
[Result "1/2-1/2"]
[Round "01"]
[TimeControl "180+1"]
[Date "2022.02.23"]
[WhiteClock "0:00:07"]
[BlackClock "0:00:33"]

1. Nf3 {[%clk 0:02:59]}  e6 {[%clk 0:02:57]} 2. c4 {[%clk 0:02:57]}  d5 {[%clk 0:02:56]} 3. d4 {[%clk 0:02:57]}  c6 {[%clk 0:02:55]} 4. Qc2 {[%clk 0:02:55]}  a5 {[%clk 0:02:50]} 5. Nbd2 {[%clk 0:02:52]}  Nf6 {[%clk 0:02:26]} 6. g3 {[%clk 0:02:33]}  b5 {[%clk 0:02:24]} 7. cxb5 {[%clk 0:02:25]}  cxb5 {[%clk 0:02:25]} 8. e4 {[%clk 0:02:25]}  b4 {[%clk 0:02:16]} 9. exd5 {[%clk 0:02:22]}  Nxd5 {[%clk 0:02:15]} 10. Ne5 {[%clk 0:02:19]}  Bd6 {[%clk 0:02:08]} 11. Bb5+ {[%clk 0:02:16]}  Kf8 {[%clk 0:02:08]} 12. O-O {[%clk 0:02:09]}  h5 {[%clk 0:02:06]} 13. Ne4 {[%clk 0:02:06]}  Ba6 {[%clk 0:02:03]} 14. Bg5 {[%clk 0:01:37]}  f6 {[%clk 0:01:56]} 15. Ng6+ {[%clk 0:01:30]}  Kg8 {[%clk 0:01:55]} 16. Bxa6 {[%clk 0:01:23]}  Rxa6 {[%clk 0:01:55]} 17. Nxh8 {[%clk 0:01:21]}  Kxh8 {[%clk 0:01:54]} 18. Nxd6 {[%clk 0:01:18]}  Rxd6 {[%clk 0:01:52]} 19. Be3 {[%clk 0:01:15]}  Nd7 {[%clk 0:01:47]} 20. Qg6 {[%clk 0:01:13]}  h4 {[%clk 0:01:44]} 21. Qh5+ {[%clk 0:01:11]}  Kg8 {[%clk 0:01:44]} 22. Qxh4 {[%clk 0:01:12]}  a4 {[%clk 0:01:40]} 23. a3 {[%clk 0:01:03]}  Qb8 {[%clk 0:01:39]} 24. Bf4 {[%clk 0:00:53]}  e5 {[%clk 0:01:38]} 25. dxe5 {[%clk 0:00:51]}  fxe5 {[%clk 0:01:39]} 26. Bg5 {[%clk 0:00:46]}  Qb5 {[%clk 0:01:33]} 27. Qe4 {[%clk 0:00:43]}  bxa3 {[%clk 0:01:29]} 28. Rxa3 {[%clk 0:00:41]}  N5b6 {[%clk 0:01:27]} 29. Be3 {[%clk 0:00:33]}  Nc4 {[%clk 0:01:26]} 30. Rc3 {[%clk 0:00:28]}  Nxb2 {[%clk 0:01:13]} 31. Rc8+ {[%clk 0:00:28]}  Kf7 {[%clk 0:01:13]} 32. Qf5+ {[%clk 0:00:25]}  Nf6 {[%clk 0:01:13]} 33. Rc7+ {[%clk 0:00:24]}  Rd7 {[%clk 0:01:13]} 34. Rxd7+ {[%clk 0:00:23]}  Qxd7 {[%clk 0:01:14]} 35. Qxd7+ {[%clk 0:00:20]}  Nxd7 {[%clk 0:01:14]} 36. Ra1 {[%clk 0:00:20]}  Ke6 {[%clk 0:00:56]} 37. Ra2 {[%clk 0:00:20]}  Nd3 {[%clk 0:00:56]} 38. Rxa4 {[%clk 0:00:20]}  Nf6 {[%clk 0:00:56]} 39. Kg2 {[%clk 0:00:20]}  e4 {[%clk 0:00:55]} 40. Ra6+ {[%clk 0:00:18]}  Kf5 {[%clk 0:00:54]} 41. Ra7 {[%clk 0:00:19]}  g6 {[%clk 0:00:53]} 42. h4 {[%clk 0:00:19]}  Ng4 {[%clk 0:00:53]} 43. Ra5+ {[%clk 0:00:19]}  Ke6 {[%clk 0:00:53]} 44. Bd4 {[%clk 0:00:18]}  Kf7 {[%clk 0:00:51]} 45. f3 {[%clk 0:00:18]}  Ne1+ {[%clk 0:00:50]} 46. Kf1 {[%clk 0:00:17]}  Nxf3 {[%clk 0:00:51]} 47. Ra4 {[%clk 0:00:15]}  Ke6 {[%clk 0:00:49]} 48. Bf2 {[%clk 0:00:14]}  Kf5 {[%clk 0:00:47]} 49. Ra5+ {[%clk 0:00:15]}  Kf6 {[%clk 0:00:47]} 50. Ke2 {[%clk 0:00:15]}  Ke6 {[%clk 0:00:46]} 51. Be3 {[%clk 0:00:15]}  Kf6 {[%clk 0:00:44]} 52. Bf4 {[%clk 0:00:15]}  Nd4+ {[%clk 0:00:43]} 53. Kf1 {[%clk 0:00:12]}  Nf3 {[%clk 0:00:35]} 54. Ra6+ {[%clk 0:00:11]}  Kf5 {[%clk 0:00:35]} 55. Ra8 {[%clk 0:00:11]}  Ngh2+ {[%clk 0:00:31]} 56. Ke2 {[%clk 0:00:10]}  Ng4 {[%clk 0:00:32]} 57. Rf8+ {[%clk 0:00:09]}  Ke6 {[%clk 0:00:33]} 58. Re8+ {[%clk 0:00:08]}  Kf5 {[%clk 0:00:33]} 59. Re7 {[%clk 0:00:07]}  Nd4+ {[%clk 0:00:32]} 60. Kd1 {[%clk 0:00:06]}  Nf3 {[%clk 0:00:32]} 61. Ke2 {[%clk 0:00:06]}  Ng1+ {[%clk 0:00:32]} 62. Kf1 {[%clk 0:00:06]}  Nf3 {[%clk 0:00:33]} 63. Ke2 {[%clk 0:00:07]} 1/2-1/2


[Site "https://www.chess.com"]